fUSD/lending_fUSD_20260314
["ID","MTS","AMOUNT","RATE_DAILY","PERIOD"]
[408358072,1773491448967,-500.0,0.00019927,2]
[408358073,1773491448976,-420.0,0.00019927,2]
[408358074,1773491448986,-500.0,0.00019927,2]
[408358075,1773491448998,-500.0,0.00019927,2]
[408358076,1773491449008,-270.66103403,0.00019944,2]
[408358077,1773491449017,-261.0,0.00019949,2]
[408358078,1773491449027,-782.34,0.00019958,2]
[408358079,1773491449035,-700.0,0.0001997,2]
[408358080,1773491449044,-1200.0,0.0001997,2]
[408358081,1773491449053,-3572.0,0.00019973,2]
[408358082,1773491449062,-160.04800097,0.00019973,2]
[408358083,1773491449071,-500.57919258,0.00019973,2]
[408358084,1773491449080,-502.2044896,0.00019973,2]
[408358085,1773491449089,-500.0,0.00019973,2]
[408358086,1773491449097,-160.048,0.00019973,2]
[408358087,1773491449107,-500.0,0.00019973,2]
[408358088,1773491449116,-500.0,0.00019973,2]
[408358089,1773491449126,-500.0,0.00019973,2]
[408358090,1773491449136,-500.0,0.00019973,2]
[408358091,1773491449145,-565.36741899,0.00019973,2]
[408358092,1773491449154,-500.0,0.00019973,2]
[408358093,1773491449165,-1715.37752877,0.00019979,7]
[408358094,1773491449175,-555.0,0.00019982,2]
[408358095,1773491449184,-642.44579023,0.00019982,2]
[408358096,1773491449193,-500.0,0.00019982,2]
[408358097,1773491449205,-420.0,0.00019982,2]
[408358098,1773491449351,-500.0,0.00019982,2]
[408358099,1773491449360,-500.0,0.00019982,2]
[408358100,1773491449369,-500.0,0.00019999,2]
[408358101,1773491449379,-500.0,0.00019999,2]
[408358102,1773491449389,-500.0,0.00019999,2]
[408358103,1773491449398,-500.0,0.00019999,2]
[408358104,1773491449408,-500.0,0.00019999,2]
[408358105,1773491449418,-500.0,0.00019999,2]
[408358106,1773491449427,-349.16,0.00019999,2]
[408358107,1773491449436,-2202225.34175944,0.0002,2]
[408358108,1773491449446,-175667.44922813,0.0002,2]
[408358109,1773491449455,-1503.75323276,0.0002,2]
[408358110,1773491449465,-2223580.77030751,0.0002,2]
[408358111,1773491449474,-1306925.59751745,0.0002,2]
[408358112,1773491449483,-708266.85986481,0.0002,2]
[408358113,1773491449493,-645.4575277,0.0002,2]
[408358114,1773491449503,-160.05116755,0.0002,2]
[408358115,1773491449513,-220726.96776037,0.0002,2]
[408358116,1773491449523,-220568.39092498,0.0002,2]
[408358117,1773491449532,-5627.66304383,0.0002,4]
[408358118,1773491449541,-5852.38192832,0.0002,2]
[408358119,1773491449551,-97320.26071552,0.0002,2]
[408358120,1773491449559,-430.33564595,0.0002,2]
[408358121,1773491449568,-10004.54381569,0.0002,7]
[408358122,1773491449577,-191.05,0.0002,2]
[408358123,1773491449586,-157.73,0.0002,2]
[408358124,1773491449595,-151.0,0.0002,2]
[408358125,1773491449604,-151.0,0.0002,2]
[408358126,1773491449615,-151.0,0.0002,2]
[408358127,1773491449624,-151.0,0.0002,2]
[408358128,1773491449634,-151.0,0.0002,2]
[408358129,1773491449643,-151.0,0.0002,2]
[408358130,1773491449653,-151.0,0.0002,2]
[408358131,1773491449662,-151.0,0.0002,2]
[408358132,1773491449672,-220.945711,0.00020002,2]
[408358133,1773491449682,-8720.0,0.0002001,2]
[408358134,1773491449691,-540.0,0.00020024,2]
[408358135,1773491449701,-555.0,0.00020037,2]
[408358136,1773491449710,-500.0,0.00020037,2]
[408358137,1773491449720,-420.0,0.00020037,2]
[408358138,1773491449731,-500.0,0.00020037,2]
[408358139,1773491449741,-500.0,0.00020037,2]
[408358140,1773491449751,-168.0,0.00020047,2]
[408358141,1773491449759,-786.21115621,0.00020066,2]
[408358142,1773491449769,-168.0,0.00020071,2]
[408358143,1773491449777,-555.0,0.00020092,2]
[408358144,1773491449786,-500.0,0.00020092,2]
[408358145,1773491449795,-420.0,0.00020092,2]
[408358146,1773491449804,-500.0,0.00020092,2]
[408358147,1773491449813,-500.0,0.00020092,2]
[408358148,1773491449822,-519.64,0.00020126,2]
[408358149,1773491449831,-555.0,0.00020146,2]
[408358150,1773491449840,-500.0,0.00020146,2]
[408358151,1773491449850,-420.0,0.00020146,2]
[408358152,1773491449859,-500.0,0.00020146,2]
[408358153,1773491449868,-500.0,0.00020146,2]
[408358154,1773491449877,-555.0,0.00020201,2]
[408358155,1773491449886,-258.72964926,0.00020201,2]
[408358156,1773491449895,-420.0,0.00020201,2]
[408358157,1773491449904,-276.76586784,0.00020201,2]
[408358158,1773491449913,-500.0,0.00020201,2]
[408358159,1773491449922,-296.0,0.00020226,2]
[408358160,1773491449931,-782.34,0.00020232,2]
[408358161,1773491449940,-555.0,0.00020256,2]
[408358162,1773491449949,-420.0,0.00020256,2]
[408358163,1773491449959,-280.52031355,0.00020256,2]
[408358164,1773491449968,-296.0,0.00020307,2]
[408358165,1773491449979,-555.0,0.00020311,2]
[408358166,1773491449988,-420.0,0.00020311,2]
[408358167,1773491449998,-168.0,0.00020331,2]
[408358168,1773491450011,-296.0,0.00020341,2]
[408358169,1773491450020,-555.0,0.00020366,2]
[408358170,1773491450030,-420.0,0.00020366,2]
[408358171,1773491450039,-168.0,0.00020377,2]
[408358172,1773491450048,-555.0,0.0002042,2]
[408358173,1773491450058,-420.0,0.0002042,2]
[408358174,1773491450067,-555.0,0.00020475,2]
[408358175,1773491450076,-420.0,0.00020475,2]
[408358176,1773491450085,-168.0,0.00020494,2]
[408358177,1773491450095,-508.0,0.000205,5]
[408358178,1773491450104,-168.0,0.00020502,2]
[408358179,1773491450113,-491.79,0.00020506,2]
[408358180,1773491450122,-2000.0,0.00020529,2]
[408358181,1773491450131,-555.0,0.0002053,2]
[408358182,1773491450141,-420.0,0.0002053,2]
[408358183,1773491450150,-21650.86,0.00020548,2]
[408358184,1773491450159,-168.0,0.00020553,2]
[408358185,1773491450168,-555.0,0.00020585,2]
[408358186,1773491450178,-420.0,0.00020585,2]
[408358187,1773491450187,-166.66,0.00020623,2]
[408358188,1773491450196,-555.0,0.0002064,2]
[408358189,1773491450206,-420.0,0.0002064,2]
[408358190,1773491450218,-599.0,0.00020654,2]
[408358191,1773491450227,-168.0,0.00020668,2]
[408358192,1773491450236,-555.0,0.00020694,2]
[408358193,1773491450245,-420.0,0.00020694,2]
[408358194,1773491450254,-22784.87116762,0.000207,2]
[408358195,1773491450264,-587.0,0.00020736,2]
[408358196,1773491450273,-555.0,0.00020749,2]
[408358197,1773491450282,-420.0,0.00020749,2]
[408358198,1773491450291,-168.0,0.00020757,2]
[408358199,1773491450301,-248.25,0.00020785,2]
[408358200,1773491450310,-2808.0,0.00020803,2]
[408358201,1773491450319,-555.0,0.00020804,2]
[408358202,1773491450332,-420.0,0.00020804,2]
[408358203,1773491450343,-296.0,0.0002083,2]
[408358204,1773491450352,-555.0,0.00020859,2]
[408358205,1773491450361,-420.0,0.00020859,2]
[408358206,1773491450371,-700.0,0.0002087,2]
[408358207,1773491450380,-166.67,0.00020885,2]
[408358208,1773491450390,-2083.19184224,0.00020892,2]
[408358209,1773491450400,-555.0,0.00020913,2]
[408358210,1773491450409,-420.0,0.00020913,2]
[408358211,1773491450418,-540.0,0.00020934,2]
[408358212,1773491450428,-2351.0,0.00020942,2]
[408358213,1773491450439,-150.99,0.00020951,2]
[408358214,1773491450448,-10671.91,0.00020951,2]
[408358215,1773491450458,-9999.99,0.00020951,2]
[408358216,1773491450467,-999.99,0.00020951,2]
[408358217,1773491450477,-9999.99,0.00020951,2]
[408358218,1773491450487,-9999.99,0.00020951,2]
[408358219,1773491450496,-9999.99,0.00020951,2]
[408358220,1773491450505,-31511.56,0.00020951,2]
[408358221,1773491450515,-299.99,0.00020951,7]
[408358222,1773491450524,-19999.99,0.00020951,2]
[408358223,1773491450534,-4999.99,0.00020951,2]
[408358224,1773491450543,-9339.65,0.00020951,2]
[408358225,1773491450552,-9999.99,0.00020951,2]
[408358226,1773491450562,-1477.76,0.00020951,2]
[408358227,1773491450571,-350.64,0.00020951,2]
[408358228,1773491450581,-561.0,0.00020968,2]
[408358229,1773491450590,-439.09848475,0.00020968,2]
[408358230,1773491450608,-296.0,0.00020984,2]
[408358231,1773491450618,-20000.0,0.00021,2]
[408358232,1773491450628,-296.0,0.00021048,2]
[408358233,1773491450637,-12593.14,0.00021068,2]
[408358234,1773491450646,-865.0,0.00021072,2]
[408358235,1773491450656,-347.19864037,0.0002108,2]
[408358236,1773491450665,-296.0,0.0002116,2]
[408358237,1773491450675,-296.0,0.00021167,2]
[408358238,1773491450684,-250.0,0.00021208,2]
[408358239,1773491450694,-174.1,0.00021247,2]
[408358240,1773491450703,-347.19864037,0.00021288,2]
[408358241,1773491450713,-6418.38,0.0002137,2]
[408358242,1773491450723,-205.8,0.00021409,2]
[408358243,1773491450732,-2809.0,0.00021435,2]
[408358244,1773491450742,-347.19864037,0.00021497,2]
[408358245,1773491450751,-43724.11939005,0.000215,2]
[408358246,1773491450761,-248.55,0.00021595,2]
[408358247,1773491450770,-410.0,0.00021595,2]
[408358248,1773491450780,-2293.23,0.00021595,2]
[408358249,1773491450789,-166.66,0.00021645,2]
[408358250,1773491450799,-248.25,0.0002173,2]
[408358251,1773491450808,-155.0,0.00021736,2]
[408358252,1773491450818,-2852.0,0.00021755,2]
[408358253,1773491450827,-1600.0,0.00021843,2]
[408358254,1773491450837,-540.0,0.00021844,2]
[408358255,1773491450846,-2500.0,0.00021917,2]
[408358256,1773491450856,-1501.83685966,0.00021917,2]
[408358257,1773491450866,-5000.0,0.00021918,2]
[408358258,1773491450875,-152.41,0.00021918,2]
[408358259,1773491450885,-150.38951412,0.00021918,2]
[408358260,1773491450894,-174.08,0.0002212,2]
[408358261,1773491450904,-675.10541552,0.00022314,2]
[408358262,1773491450913,-205.78910164,0.00022331,2]
[408358263,1773491450923,-157.73,0.000224,60]
[408358264,1773491450932,-3509.0,0.00022613,2]
[408358265,1773491450942,-2861.0,0.00022614,3]
[408358266,1773491450951,-823.0,0.00022639,2]
[408358267,1773491450960,-248.25,0.00022674,2]
[408358268,1773491450970,-150.0,0.00022744,2]
[408358269,1773491450979,-1260.0,0.00022744,2]
[408358270,1773491450989,-1214.0,0.00022744,2]
[408358271,1773491450998,-923.0,0.00022744,2]
[408358272,1773491451008,-1343.0,0.00022744,2]
[408358273,1773491451017,-1043.0,0.00022744,2]
[408358274,1773491451027,-524.18231198,0.000228,2]
[408358275,1773491451036,-329.66911211,0.000228,2]
[408358276,1773491451046,-329.6691121,0.000228,2]
[408358277,1773491451055,-329.6691121,0.000228,2]
[408358278,1773491451065,-329.6691121,0.000228,2]
[408358279,1773491451074,-880.41,0.00022809,2]
[408358280,1773491451084,-2000.0,0.0002281,2]
[408358281,1773491451094,-150.0,0.00022864,2]
[408358282,1773491451103,-150.0,0.00022864,2]
[408358283,1773491451112,-150.0,0.00022864,2]
[408358284,1773491451121,-150.0,0.00022864,2]
[408358285,1773491451131,-150.0,0.00022864,2]
[408358286,1773491451140,-150.0,0.00022864,2]
[408358287,1773491451150,-174.1,0.00022906,2]
[408358288,1773491451162,-7291.03452642,0.00023,2]
[408358289,1773491451172,-205.8,0.00023154,2]
[408358290,1773491451181,-2050.92265165,0.00023172,14]
[408358291,1773491451191,-249.34,0.00023207,2]
[408358292,1773491451200,-350.0,0.00023207,2]
[408358293,1773491451209,-1638.02,0.00023207,2]
[408358294,1773491451219,-953.42614139,0.00023414,2]
[408358295,1773491451228,-248.25,0.00023619,2]
[408358296,1773491451237,-199.75,0.000239,14]
[408358297,1773491451247,-485.44567832,0.0002391,2]
[408358298,1773491451256,-458.89233853,0.0002391,2]
[408358299,1773491451266,-484.83,0.0002391,2]
[408358300,1773491451275,-418.92,0.0002391,2]
[408358301,1773491451284,-458.87,0.00023915,2]
[408358302,1773491451294,-700.0,0.0002397,2]
[408358303,1773491451303,-700.0,0.0002397,2]
[408358304,1773491451313,-700.0,0.0002397,2]
[408358305,1773491451322,-700.0,0.0002397,2]
[408358306,1773491451341,-400.0,0.0002397,2]
[408358307,1773491451351,-400.0,0.0002397,2]
[408358308,1773491451361,-500.0,0.0002397,2]
[408358309,1773491451371,-508.0,0.00024,8]
[408358310,1773491451383,-1600.0,0.00024028,2]
[408358311,1773491451392,-151.0,0.0002411,2]
[408358312,1773491451402,-841.0,0.00024201,3]
[408358313,1773491451412,-152.41,0.00024335,2]
[408358314,1773491451424,-3219.87,0.00024542,2]
[408358315,1773491451434,-248.25,0.00024564,2]
[408358316,1773491451443,-211.05804787,0.0002463,2]
[408358317,1773491451453,-154.751687,0.00024658,2]
[408358318,1773491451463,-151.0,0.00024658,2]
[408358319,1773491451473,-151.0,0.00024658,2]
[408358320,1773491451483,-151.0,0.00024658,2]
[408358321,1773491451493,-871.43,0.00024658,2]
[408358322,1773491451503,-150.0,0.00024658,2]
[408358323,1773491451513,-1000.0,0.00024658,2]
[408358324,1773491451524,-1114.0,0.00024717,2]
[408358325,1773491451535,-2386.46777465,0.00024768,18]
[408358326,1773491451544,-38072.05895031,0.00024769,4]
[408358327,1773491451553,-52670.8666086,0.000249,3]
[408358328,1773491451564,-150.0,0.00025,2]
[408358329,1773491451573,-3466.74648775,0.00025,7]
[408358330,1773491451583,-151.0,0.00025,5]
[408358331,1773491451592,-1094.33199343,0.00025083,2]
[408358332,1773491451601,-161.0,0.00025087,3]
[408358333,1773491451611,-2000.0,0.00025092,2]
[408358334,1773491451620,-174.1,0.00025321,2]
[408358335,1773491451629,-885.140509,0.00025345,30]
[408358336,1773491451638,-332.384262,0.00025345,30]
[408358337,1773491451647,-188.74,0.0002535,2]
[408358338,1773491451658,-248.25,0.00025509,2]
[408358339,1773491451667,-194.232,0.00025613,2]
[408358340,1773491451677,-314.56691612,0.00025633,2]
[408358341,1773491451686,-152.0,0.00025683,3]
[408358342,1773491451696,-205.8,0.00025724,2]
[408358343,1773491451706,-165.0,0.00025727,3]
[408358344,1773491451716,-150.0,0.00025744,2]
[408358345,1773491451727,-1260.0,0.00025744,2]
[408358346,1773491451736,-1214.0,0.00025744,2]
[408358347,1773491451746,-923.0,0.00025744,2]
[408358348,1773491451755,-1343.0,0.00025744,2]
[408358349,1773491451764,-1043.0,0.00025744,2]
[408358350,1773491451773,-150.0,0.00025864,2]
[408358351,1773491451782,-150.0,0.0002589,2]
[408358352,1773491451792,-258.83421588,0.00026,5]
[408358353,1773491451801,-675.10541552,0.00026031,2]
[408358354,1773491451810,-1600.0,0.00026212,120]
[408358355,1773491451820,-2537.17254534,0.00026364,21]
[408358356,1773491451830,-3368.58381358,0.00026624,2]
[408358357,1773491451840,-152.41,0.00026753,2]
[408358358,1773491451851,-856.0,0.00026835,3]
[408358359,1773491451860,-152.0,0.00027104,4]
[408358360,1773491451870,-150.0,0.00027185,2]
[408358361,1773491451880,-1490.97,0.00027245,2]
[408358362,1773491451891,-150.0,0.00027369,2]
[408358363,1773491451901,-2000.0,0.00027373,2]
[408358364,1773491451910,-1454.58,0.00027397,2]
[408358365,1773491451920,-300.0,0.00027397,2]
[408358366,1773491451929,-522.39,0.00027397,2]
[408358367,1773491451938,-1000.0,0.00027397,20]
[408358368,1773491451948,-871.43,0.00027397,2]
[408358369,1773491451957,-151.0,0.00027397,2]
[408358370,1773491451968,-151.0,0.00027397,2]
[408358371,1773491451977,-508.0,0.000275,11]
[408358372,1773491451986,-2722.01289764,0.00027961,25]
[408358373,1773491451996,-152.0,0.00028525,5]
[408358374,1773491452005,-150.0,0.00028544,2]
[408358375,1773491452015,-150.0,0.00028744,2]
[408358376,1773491452024,-1260.0,0.00028744,2]
[408358377,1773491452036,-1214.0,0.00028744,2]
[408358378,1773491452046,-923.0,0.00028744,2]
[408358379,1773491452057,-1343.0,0.00028744,2]
[408358380,1773491452066,-1043.0,0.00028744,2]
[408358381,1773491452075,-150.0,0.00028864,2]
[408358382,1773491452084,-153.99407455,0.00028958,2]
[408358383,1773491452094,-152.41,0.0002917,2]
[408358384,1773491452104,-3010.40421786,0.00029557,29]
[408358385,1773491452114,-675.10541552,0.00029749,2]
[408358386,1773491452123,-10279.58539146,0.00029749,2]
[408358387,1773491452132,-215.9605461,0.00029749,2]
[408358388,1773491452142,-863.0,0.00029837,3]
[408358389,1773491452151,-152.0,0.00029946,6]
[408358390,1773491452161,-150.0,0.00029971,2]
[408358391,1773491452170,-9500.0,0.0003,3]
[408358392,1773491452179,-5000.0,0.0003,7]
[408358393,1773491452189,-5000.0,0.0003,7]
[408358394,1773491452198,-7528.056626,0.0003,2]
[408358395,1773491452207,-152.10160028,0.0003,7]
[408358396,1773491452216,-152.10160028,0.0003,7]
[408358397,1773491452226,-871.43,0.00030137,2]
[408358398,1773491452235,-210.893561,0.00030137,7]
[408358399,1773491452245,-798.35,0.000302,7]
[408358400,1773491452256,-776.78,0.000302,7]
[408358401,1773491452266,-161.0,0.00030674,3]
[408358402,1773491452275,-2809.0,0.00030771,3]
[408358403,1773491452285,-700.0,0.0003097,2]
[408358404,1773491452294,-400.0,0.0003097,2]
[408358405,1773491452303,-508.0,0.00031,14]
[408358406,1773491452312,-2787.0,0.00031091,3]
[408358407,1773491452322,-4531.52393391,0.00031305,2]
[408358408,1773491452334,-347.19864037,0.00031306,2]
[408358409,1773491452344,-152.0,0.00031367,7]
[408358410,1773491452354,-150.0,0.0003147,2]
[408358411,1773491452364,-152.41,0.00031587,2]
[408358412,1773491452374,-150.0,0.00031744,2]
[408358413,1773491452384,-1260.0,0.00031744,2]
[408358414,1773491452393,-1214.0,0.00031744,2]
[408358415,1773491452403,-923.0,0.00031744,2]
[408358416,1773491452412,-1343.0,0.00031744,2]
[408358417,1773491452422,-1043.0,0.00031744,2]
[408358418,1773491452431,-2000.0,0.000318,2]
[408358419,1773491452440,-160.0,0.00031831,120]
[408358420,1773491452592,-2808.0,0.00031886,3]
[408358421,1773491452615,-599.25,0.000319,14]
[408358422,1773491452624,-776.78,0.000319,7]
[408358423,1773491452633,-152.0,0.00032788,8]
[408358424,1773491452642,-160.0,0.000328,7]
[408358425,1773491452651,-160.0,0.000328,3]
[408358426,1773491452660,-160.0,0.000328,2]
[408358427,1773491452669,-798.35,0.000328,7]
[408358428,1773491452678,-150.09552505,0.00032877,3]
[408358429,1773491452686,-347.07,0.00032877,2]
[408358430,1773491452695,-871.43,0.00032877,2]
[408358431,1773491452704,-3199.999999,0.00032877,120]
[408358432,1773491452713,-151.0,0.00032877,7]
[408358433,1773491452722,-151.0,0.00032877,7]
[408358434,1773491452731,-154.53082537,0.00032877,2]
[408358435,1773491452740,-151.0,0.00032897,14]
[408358436,1773491452750,-8954.92,0.000329,14]
[408358437,1773491452758,-846.02,0.000329,2]
[408358438,1773491452769,-150.51,0.000329,7]
[408358439,1773491452778,-656.46,0.000329,30]
[408358440,1773491452787,-233.4,0.000329,30]
[408358441,1773491452796,-543.5202,0.00033,14]
[408358442,1773491452804,-150.0,0.00033043,2]
[408358443,1773491452813,-675.10541552,0.00033466,2]
[408358444,1773491452822,-8954.92,0.000336,14]
[408358445,1773491452831,-2809.0,0.000337,11]
[408358446,1773491452840,-454.0,0.00033747,30]
[408358447,1773491452849,-302.0,0.00033747,30]
[408358448,1773491452859,-2065.327856,0.00033793,60]
[408358449,1773491452868,-268.850471,0.00033793,60]
[408358450,1773491452877,-775.56328,0.00033793,60]
[408358451,1773491452887,-316.27,0.00033863,7]
[408358452,1773491452896,-776.78,0.000339,30]
[408358453,1773491452906,-152.41,0.00034005,2]
[408358454,1773491452915,-152.0,0.00034209,9]
[408358455,1773491452924,-846.02,0.000343,2]
[408358456,1773491452933,-150.51,0.000343,7]
[408358457,1773491452942,-656.46,0.000343,30]
[408358458,1773491452954,-233.4,0.000343,30]
[408358459,1773491452963,-798.35,0.000343,30]
[408358460,1773491452972,-848.0,0.00034444,11]
[408358461,1773491452981,-508.0,0.000345,18]
[408358462,1773491452990,-150.0,0.00034696,2]
[408358463,1773491452999,-150.0,0.00034744,2]
[408358464,1773491453008,-1260.0,0.00034744,2]
[408358465,1773491453017,-1214.0,0.00034744,2]
[408358466,1773491453026,-923.0,0.00034744,2]
[408358467,1773491453035,-1343.0,0.00034744,2]
[408358468,1773491453044,-1043.0,0.00034744,2]
[408358469,1773491453053,-848.0,0.00034764,11]
[408358470,1773491453062,-1500.0,0.00034795,2]
[408358471,1773491453071,-8954.92,0.000348,14]
[408358472,1773491453080,-5000.0,0.00035,7]
[408358473,1773491453089,-200.0,0.00035,3]
[408358474,1773491453098,-848.0,0.00035084,11]
[408358475,1773491453107,-2000.0,0.000355,2]
[408358476,1773491453116,-492.46877836,0.00035589,120]
[408358477,1773491453125,-776.78,0.000356,30]
[408358478,1773491453134,-151.0,0.00035616,7]
[408358479,1773491453143,-151.0,0.00035616,7]
[408358480,1773491453152,-151.0,0.00035616,7]
[408358481,1773491453161,-500.0,0.00035616,7]
[408358482,1773491453171,-465.56240505,0.00035616,7]
[408358483,1773491453180,-500.0,0.00035616,7]
[408358484,1773491453189,-500.0,0.00035616,7]
[408358485,1773491453198,-500.0,0.00035616,7]
[408358486,1773491453207,-500.0,0.00035616,7]
[408358487,1773491453217,-871.43,0.00035616,2]
[408358488,1773491453225,-152.0,0.0003563,10]
[408358489,1773491453234,-999.99,0.00036,120]
[408358490,1773491453243,-468111.10304113,0.00036,10]
[408358491,1773491453252,-196.965764,0.00036,7]
[408358492,1773491453261,-151.0,0.00036,7]
[408358493,1773491453270,-151.0,0.00036,7]
[408358494,1773491453279,-1008.52,0.00036,120]
[408358495,1773491453288,-150.51,0.00036,7]
[408358496,1773491453297,-656.46,0.00036,30]
[408358497,1773491453306,-233.4,0.00036,30]
[408358498,1773491453315,-8954.92,0.000362,14]
[408358499,1773491453323,-846.02,0.000362,2]
[408358500,1773491453333,-798.35,0.000362,30]
[408358501,1773491453343,-152.41,0.00036422,2]
[408358502,1773491453353,-150.0,0.0003643,2]
[408358503,1773491453362,-1008.52,0.00036618,120]
[408358504,1773491453371,-200.0,0.0003663,2]
[408358505,1773491453380,-50055.14322395,0.00037,2]
[408358506,1773491453390,-163.0,0.00037027,11]
[408358507,1773491453399,-152.0,0.00037051,11]
[408358508,1773491453409,-207.7260108,0.00037051,5]
[408358509,1773491453418,-675.10541552,0.00037183,2]
[408358510,1773491453427,-168.15910439,0.000372,120]
[408358511,1773491453437,-1008.52,0.00037236,120]
[408358512,1773491453446,-776.78,0.000373,30]
[408358513,1773491453455,-764.0,0.000377,120]
[408358514,1773491453466,-1260.0,0.00037744,2]
[408358515,1773491453475,-1214.0,0.00037744,2]
[408358516,1773491453485,-923.0,0.00037744,2]
[408358517,1773491453494,-1343.0,0.00037744,2]
[408358518,1773491453503,-1043.0,0.00037744,2]
[408358519,1773491453512,-151.0,0.00037744,7]
[408358520,1773491453521,-150.51,0.000378,7]
[408358521,1773491453530,-656.46,0.000378,30]
[408358522,1773491453539,-233.4,0.000378,30]
[408358523,1773491453548,-1008.52,0.00037855,120]
[408358524,1773491453557,-798.35,0.00038,30]
[408358525,1773491453566,-508.0,0.00038,21]
[408358526,1773491453575,-280.0,0.00038034,30]
[408358527,1773491453584,-1310.41,0.00038034,30]
[408358528,1773491453593,-213.14784105,0.000381,33]
[408358529,1773491453602,-150.0,0.00038252,2]
[408358530,1773491453611,-257.42984161,0.0003838,5]
[408358531,1773491453620,-846.02,0.000384,30]
[408358532,1773491453629,-1008.52,0.00038473,120]
[408358533,1773491453638,-15499.44702493,0.00038767,2]
[408358534,1773491453647,-263.56,0.00038942,7]
[408358535,1773491453656,-200.0,0.00038947,6]
[408358536,1773491453665,-200.0,0.00038947,6]
[408358537,1773491453674,-200.0,0.00038947,6]
[408358538,1773491453683,-200.0,0.0003895,6]
[408358539,1773491453692,-200.0,0.0003895,6]
[408358540,1773491453701,-776.78,0.00039,30]
[408358541,1773491453711,-1490.97,0.00039026,2]
[408358542,1773491453719,-1008.52,0.00039091,120]
[408358543,1773491453728,-150.51,0.000391,30]
[408358544,1773491453737,-656.46,0.000391,30]
[408358545,1773491453745,-233.4,0.000391,30]
[408358546,1773491453753,-2000.0,0.000392,2]
[408358547,1773491453763,-8954.92,0.000393,14]
[408358548,1773491453776,-1008.52,0.00039709,120]
[408358549,1773491453785,-462.67323811,0.00039726,120]
[408358550,1773491453793,-798.35,0.000398,30]
[408358551,1773491453801,-847.0,0.00039882,11]
[408358552,1773491453810,-1000.0,0.000399,120]
[408358553,1773491453819,-1000.0,0.000399,120]
[408358554,1773491453827,-1482.92529,0.000399,120]
[408358555,1773491453835,-300.0,0.0004,10]
[408358556,1773491453843,-5000.0,0.0004,7]
[408358557,1773491453851,-608.5052666,0.0004,7]
[408358558,1773491453860,-418.36093954,0.0004,7]
[408358559,1773491453868,-5661.53,0.0004,14]
[408358560,1773491453876,-4525.0188089,0.0004,7]
[408358561,1773491453885,-50156.8,0.0004,120]
[408358562,1773491453893,-187.46,0.0004,120]
[408358563,1773491453902,-151.14,0.0004,120]
[408358564,1773491453910,-227.11,0.0004,120]
[408358565,1773491453918,-161.0,0.0004,120]
[408358566,1773491453927,-162.0,0.0004,120]
[408358567,1773491453936,-160.0,0.0004,7]
[408358568,1773491453944,-151.14,0.0004,2]
[408358569,1773491453952,-151.14,0.0004,2]
[408358570,1773491453960,-151.14,0.0004,2]
[408358571,1773491453968,-151.14,0.0004,2]